Workbook

Sheet 2022年5月
A1: 陆 丰 市 2022 年 5 月 财 政 预 算 收 入 完 成 情 况 表
A2: 2022-05-31 | L2: 单位：万元
B3: 年 度 | C3: 累 计 | D3: 占 年 | E3: 上 年 | F3: 比上年 | G3: 比上年 | H3: 本 月 | I3: 上 年 | J3: 比上年 | K3: 比上年
A4: 收 入 项 目 | B4: 预 算 | C4: 完 成 | D4: 预 算 | E4: 同 期 | F4: 同期增 | G4: 同期增 | H4: 完 成 | I4: 同 月 | J4: 同月增 | K4: 同月增 | L4: 备 注
B5: 数 | C5: 数 | D5: % | E5: 完 成 | F5: 减额 | G5: (减)% | H5: 数 | I5: 完 成 | J5: 减额 | K5: (减)%
A6: （一）税收收入 | C6: =SUM(C7:C20) -> 21,853 | E6: =SUM(E7:E20) -> 23,341 | F6: =C6-E6 -> -1,488 | G6: =F6/E6*100 -> -6.4 | H6: =SUM(H7:H20) -> 2,509 | I6: 3,412 | J6: =H6-I6 -> -903 | K6: =J6/I6*100 -> -26.5
A7: 1、增值税 | C7: 6,156 | E7: 5,861 | F7: =C7-E7 -> 295 | G7: =F7/E7*100 -> 5.0 | H7: 901 | I7: 888 | J7: =H7-I7 -> 13 | K7: =J7/I7*100 -> 1.5
A8: 2、企业所得税 | C8: 2,420 | E8: 4,392 | F8: =C8-E8 -> -1,972 | G8: =F8/E8*100 -> -44.9 | H8: 311 | I8: 592 | J8: =H8-I8 -> -281 | K8: =J8/I8*100 -> -47.5
A9: 3、个人所得税 | C9: 190 | E9: 549 | F9: =C9-E9 -> -359 | G9: =F9/E9*100 -> -65.4 | H9: 47 | I9: 102 | J9: =H9-I9 -> -55 | K9: =J9/I9*100 -> -53.9
A10: 4、资源税 | C10: 45 | E10: 51 | F10: =C10-E10 -> -6 | G10: =F10/E10*100 -> -11.8 | H10: 1 | I10: 5 | J10: =H10-I10 -> -4 | K10: =J10/I10*100 -> -80.0
A11: 5、城市维护建设税 | C11: 2,070 | E11: 2,180 | F11: =C11-E11 -> -110 | G11: =F11/E11*100 -> -5.0 | H11: 302 | I11: 328 | J11: =H11-I11 -> -26 | K11: =J11/I11*100 -> -7.9
A12: 6、房产税 | C12: 1,466 | E12: 190 | F12: =C12-E12 -> 1,276 | G12: =F12/E12*100 -> 671.6 | H12: 38 | I12: 12 | J12: =H12-I12 -> 26 | K12: =J12/I12*100 -> 216.7
A13: 7、印花税 | C13: 702 | E13: 464 | F13: =C13-E13 -> 238 | G13: =F13/E13*100 -> 51.3 | H13: 140 | I13: 72 | J13: =H13-I13 -> 68 | K13: =J13/I13*100 -> 94.4
A14: 8、城镇土地使用税 | C14: 472 | E14: 189 | F14: =C14-E14 -> 283 | G14: =F14/E14*100 -> 149.7 | H14: 16 | I14: 47 | J14: =H14-I14 -> -31 | K14: =J14/I14*100 -> -66.0
A15: 9、土地增值税 | C15: 3,310 | E15: 2,527 | F15: =C15-E15 -> 783 | G15: =F15/E15*100 -> 31.0 | H15: 217 | I15: 359 | J15: =H15-I15 -> -142 | K15: =J15/I15*100 -> -39.6
A16: 10、车船使用税 | C16: 721 | E16: 620 | F16: =C16-E16 -> 101 | G16: =F16/E16*100 -> 16.3 | H16: 137 | I16: 116 | J16: =H16-I16 -> 21 | K16: =J16/I16*100 -> 18.1
A17: 11、环保税 | C17: 132 | E17: 64 | F17: =C17-E17 -> 68 | G17: =F17/E17*100 -> 106.3 | H17: 4 | J17: =H17-I17 -> 4
A18: 12、耕地占用税 | C18: 1,796 | E18: 1,666 | F18: =C18-E18 -> 130 | G18: =F18/E18*100 -> 7.8 | H18: 0 | J18: =H18-I18 -> 0
A19: 13、契 税 | C19: 2,373 | E19: 4,587 | F19: =C19-E19 -> -2,214 | G19: =F19/E19*100 -> -48.3 | H19: 395 | I19: 891 | J19: =H19-I19 -> -496 | K19: =J19/I19*100 -> -55.7
A20: 14、其他税收收入 | E20: 1
A21: （二）非税收入 | C21: =SUM(C22:C29) -> 21,265 | E21: =E22+E23+E24+E25+E26+E27+E28+E29 -> 17,349 | F21: =C21-E21 -> 3,916 | G21: =F21/E21*100 -> 22.6 | H21: =H22+H23+H24+H25+H26+H27+H28+H29 -> 4,369 | I21: =I22+I23+I24+I25+I26+I27+I28+I29 -> 5345 | J21: =H21-I21 -> -976 | K21: =J21/I21*100 -> -18.3
A22: 1、专项收入 | C22: 1,462 | E22: 2,063 | F22: =C22-E22 -> -601 | G22: =F22/E22*100 -> -29.1 | H22: 211 | I22: 835 | J22: =H22-I22 -> -624 | K22: =J22/I22*100 -> -74.7
A23: 2、行政事业性收费收入 | C23: 3,265 | E23: 5,325 | F23: =C23-E23 -> -2,060 | G23: =F23/E23*100 -> -38.7 | H23: 1,777 | I23: 336 | J23: =H23-I23 -> 1,441 | K23: =J23/I23*100 -> 428.9
A24: 3、罚没收入 | C24: 9,483 | E24: 1,663 | F24: =C24-E24 -> 7,820 | G24: =F24/E24*100 -> 470.2 | H24: 256 | I24: 470 | J24: =H24-I24 -> -214 | K24: =J24/I24*100 -> -45.5
A25: 4、国有资源（资产）有偿使用收入 | C25: 4,425 | E25: 4,303 | F25: =C25-E25 -> 122 | G25: =F25/E25*100 -> 2.8 | H25: 1,817 | I25: 494 | J25: =H25-I25 -> 1,323 | K25: =J25/I25*100 -> 267.8
A26: 5、政府住房基金收入 | C26: 106 | E26: 290 | F26: =C26-E26 -> -184 | G26: =F26/E26*100 -> -63.4 | I26: 290 | J26: =H26-I26 -> -290 | K26: =J26/I26*100 -> -100.0
A27: 6、捐赠收入 | C27: 608 | E27: 2,505 | F27: =C27-E27 -> -1,897 | G27: =F27/E27*100 -> -75.7 | H27: 5 | I27: 2,145 | J27: =H27-I27 -> -2,140 | K27: =J27/I27*100 -> -99.8
A28: 7、其他收入 | C28: 1,916 | E28: 1,200 | F28: =C28-E28 -> 716 | G28: =F28/E28*100 -> 59.7 | H28: 303 | I28: 775 | J28: =H28-I28 -> -472 | K28: =J28/I28*100 -> -60.9
A29: 8、国有资本经营收入
A30: 一、一般公共预算收入 | C30: =C6+C21 -> 43,118 | E30: =E6+E21 -> 40,690 | F30: =C30-E30 -> 2,428 | G30: =F30/E30*100 -> 6.0 | H30: =H6+H21 -> 6,878 | I30: =I6+I21 -> 8757 | J30: =H30-I30 -> -1,879 | K30: =J30/I30*100 -> -21.5
A31: 二、政府性基金预算收入小计 | C31: 7,586 | E31: 58,777 | F31: =C31-E31 -> -51,191 | G31: =F31/E31*100 -> -87.1 | H31: 1,314 | I31: -907 | J31: =H31-I31 -> 2,221 | K31: =J31/I31*100 -> -244.9
A32: 其中：国有土地使用权出让收入 | C32: 5,903 | E32: 57,908 | F32: =C32-E32 -> -52,005 | G32: =F32/E32*100 -> -89.8 | H32: 896 | I32: -1,001 | J32: =H32-I32 -> 1,897 | K32: =J32/I32*100 -> -189.5
A33: 三、国有资本经营收入小计 | C33: 320 | H33: 301 | J33: =H33-I33 -> 301
A34: 收入合计 | C34: =C30+C31+C33 -> 51,024 | E34: =E30+E31+E33 -> 99,467 | F34: =C34-E34 -> -48,443 | G34: =F34/E34*100 -> -48.7 | H34: =H30+H31+H33 -> 8,493 | I34: =I30+I31+I33 -> 7850 | J34: =H34-I34 -> 643 | K34: =J34/I34*100 -> 8.2
A35: 注：2022年度预算草案还未通过人大决议，故本表没有反映年度预算数和占比数。 | L35: 陆丰市财政局国库股

Sheet Sheet1

Sheet Sheet2

Sheet Sheet3
